bitfinex/quotes_SOLUSD_20240729
["timestamp","ask_amount","ask_price","bid_price","bid_amount"]
[1722270408075,5.3746,186.06,186.02,6.2766]
[1722270408383,5.3743,186.08,186.02,6.2766]
[1722270408577,265.61628693,186.14,186.03,13.4381]
[1722270408578,5.3738,186.09,186.03,13.4381]
[1722270408780,5.374,186.08,186.02,11.6523]
[1722270409282,5.3737,186.1,186.04,5.375]
[1722270409588,5.3737,186.1,186.02,19.7156]
[1722270409906,5.3737,186.1,186.0,5.3763]
[1722270409907,5.3748,186.06,186.0,5.3763]
[1722270410086,1.34372941,186.1,185.98,13.4423]
[1722270410261,5.3743,186.07,185.99,1.075182]
[1722270410679,5.3737,186.1,186.01,13.4398]
[1722270410857,1.3437148,186.11,186.01,13.4398]
[1722270411063,5.3743,186.07,186.01,18.8158]
[1722270411576,5.3742,186.08,185.98,20.0]
[1722270411783,1.34372329,186.07,185.96,0.4854968]
[1722270411991,13.4346,186.09,185.96,13.9286968]
[1722270412285,1.34397832,186.08,185.96,13.9286968]
[1722270412483,13.4346,186.09,185.96,13.9286968]
[1722270412690,1.34401779,186.07,185.96,13.9128662]
[1722270412862,13.4346,186.09,185.99,5.3766]
[1722270413264,28.15,186.12,185.97,26.8852]
[1722270413570,28.15,186.12,186.01,5.3759]
[1722270413768,5.3745,186.07,186.01,5.3759]
[1722270414186,28.15,186.12,186.01,13.4396]
[1722270414864,5.375,186.05,185.99,5.3766]
[1722270415173,1.34400299,186.04,185.97,13.4425]
[1722270415372,5.3754,186.03,185.97,18.8196]
[1722270415582,1.34401928,186.09,185.97,13.4425]
[1722270415789,13.436,186.07,185.96,0.4696662]
[1722270416094,1.34403763,186.1,185.96,0.4696662]
[1722270416267,5.3748,186.06,185.96,13.9132662]
[1722270416468,1.34391467,186.05,185.96,13.9132662]
[1722270416668,18.99511019,186.11,185.96,13.9132662]
[1722270416873,5.56161019,186.11,186.02,5.3757]
[1722270417075,28.15,186.18,186.04,16.5667]
[1722270417309,13.4273,186.19,186.05,45.0]
[1722270417596,5.3725,186.14,186.08,13.4349]
[1722270417895,13.4293,186.16,186.04,30.004]
[1722270418076,1.34353335,186.15,186.05,5.3748]
[1722270418277,5.3736,186.1,186.04,35.379]
[1722270418473,5.374,186.08,186.04,16.5667]
[1722270418689,1.3436493,186.07,186.04,16.5667]
[1722270418992,5.3747,186.06,186.04,16.5667]
[1722270419209,13.4336,186.1,186.04,16.5667]
[1722270419369,5.3731,186.12,186.04,16.5667]
[1722270419571,1.34358819,186.11,186.04,16.5667]
[1722270419770,5.3731,186.12,186.04,16.5667]
[1722270420090,5.3731,186.12,186.06,5.3743]
[1722270420284,5.3726,186.13,186.07,5.3742]
[1722270420493,1.34333381,186.12,186.05,13.4371]
[1722270420676,5.3735,186.1,186.05,13.4371]
[1722270420874,13.4308,186.14,186.04,16.5667]
[1722270421176,1.34350324,186.13,186.04,16.5667]
[1722270421385,5.3748,186.05,186.04,16.5667]
[1722270422084,13.4375,186.05,185.98,15.2059]
[1722270422280,1.34421695,186.04,185.98,15.2059]
[1722270422497,5.3766,185.99,185.98,15.2059]
[1722270422795,5.3763,186.0,185.98,15.2059]
[1722270423366,5.3766,185.99,185.98,15.2059]
[1722270423873,5.3769,185.98,185.97,6.0467]
[1722270424174,5.3769,185.98,185.96,0.4696662]
[1722270424690,5.3761,186.01,185.96,0.4696662]
[1722270425000,5.3764,186.0,185.96,0.4696662]
[1722270425466,5.3759,186.02,185.96,0.4696662]
[1722270425792,5.3754,186.04,185.97,5.377]
[1722270425994,5.3754,186.04,185.96,0.4696662]
[1722270425995,5.3746,186.06,185.96,13.9128662]
[1722270426181,5.3757,186.02,185.96,13.9128662]
[1722270426380,1.34425984,186.01,185.96,0.4696662]
[1722270426585,5.3769,185.98,185.96,0.4696662]
[1722270427188,1.34444269,186.03,185.96,0.4696662]
[1722270427392,5.3772,185.97,185.96,0.4696662]
[1722270429593,6.72192868,185.97,185.96,0.4696662]
[1722270430314,5.3783,185.93,185.92,15.8762]
[1722270430608,5.3792,185.9,185.86,21.8077]
[1722270430780,1.34496968,185.89,185.86,21.8077]
[1722270431195,13.4461,185.93,185.86,21.8077]
[1722270431513,13.4483,185.9,185.8,6.2005]
[1722270431678,13.4454,185.94,185.81,1.07612534]
[1722270432007,33.5265,186.0,185.93,5.3783]
[1722270432187,5.3772,185.97,185.91,18.8255]
[1722270432497,5.3772,185.97,185.84,20.0]
[1722270432498,5.3778,185.95,185.89,5.3795]
[1722270432680,5.3778,185.95,185.87,13.4497]
[1722270432878,5.3764,186.0,185.94,5.378]
[1722270433098,5.377,185.98,185.93,13.4458]
[1722270433399,28.15,186.04,185.94,1.07567167]
[1722270433700,41.5856,186.08,185.96,13.4435]
[1722270433910,13.4379,186.04,185.93,22.7756]
[1722270434088,1.34421199,186.03,185.93,22.7756]
[1722270434403,13.4413,186.0,185.93,22.7756]
[1722270434604,5.378,185.94,185.93,22.7756]
[1722270434978,13.4413,186.0,185.93,22.7756]
[1722270435179,13.4438,185.96,185.85,21.5991]
[1722270435381,1.34494835,185.95,185.85,21.5991]
[1722270435601,5.3796,185.89,185.85,21.5991]
[1722270435803,5.3792,185.9,185.85,21.5991]
[1722270435977,5.3789,185.91,185.86,5.3803]
[1722270436175,1.34488771,185.9,185.85,21.5991]
[1722270436407,13.4461,185.93,185.85,21.5991]
[1722270436708,5.3791,185.91,185.85,21.5991]
[1722270436894,5.378,185.95,185.89,5.3792]
[1722270437096,1.34469927,186.02,185.9,1.07575942]
[1722270437284,29.49455004,186.03,185.92,13.4463]
[1722270437482,28.15,186.03,185.92,13.4463]
[1722270437712,33.5257,186.03,185.96,5.3774]
[1722270437910,5.3757,186.03,185.95,13.4441]
[1722270438213,28.15,186.07,185.91,20.0]
[1722270438416,14.78119147,186.06,185.93,13.4457]
[1722270438578,1.34419147,186.06,185.92,45.0]
[1722270438784,5.3756,186.03,185.96,5.3772]
[1722270438985,5.3752,186.04,185.98,15.5633]
[1722270439212,5.3752,186.04,185.99,5.3766]
[1722270439410,5.3754,186.03,185.98,29.0054]
[1722270439720,5.3752,186.04,185.98,15.5633]
[1722270439881,5.3752,186.04,185.98,20.9401]
[1722270440221,5.3752,186.04,185.99,5.3766]
[1722270440383,5.3749,186.05,185.99,5.3766]
[1722270440581,28.15,186.15,186.0,1.07517638]
[1722270440893,28.15,186.15,186.06,13.4364]
[1722270441098,5.3728,186.12,186.06,18.8109]
[1722270441311,5.3731,186.11,186.06,13.4364]
[1722270441611,5.3734,186.1,186.06,13.4364]
[1722270441808,28.15,186.15,186.02,13.4388]
[1722270441809,29.49346893,186.15,186.02,13.4388]
[1722270442106,5.3734,186.1,186.03,45.0]
[1722270442308,28.15,186.15,186.03,45.0]
[1722270442510,5.3734,186.11,186.05,5.3748]
[1722270442709,5.3734,186.11,186.05,6.44963078]
[1722270442884,18.98342056,186.16,186.06,5.3744]
[1722270442885,5.3728,186.13,186.06,5.3744]
[1722270443085,5.3728,186.13,186.07,11.8279]
[1722270443086,5.3726,186.13,186.07,11.8279]
[1722270443287,5.3728,186.12,186.07,11.8279]
[1722270443783,18.98342056,186.16,186.07,6.4537]
[1722270443997,5.3735,186.1,186.07,6.4537]
[1722270444410,5.374,186.08,186.07,6.4537]
[1722270444616,13.4322,186.12,186.07,6.4537]
[1722270444786,5.3732,186.11,186.07,6.4537]
[1722270445116,1.34344371,186.15,186.07,6.4537]
[1722270445335,21.34344371,186.15,186.07,6.4537]
[1722270445515,5.3731,186.12,186.07,6.4537]
[1722270445695,13.4293,186.16,186.07,6.4537]
[1722270445887,5.3728,186.13,186.07,6.4537]
[1722270446217,36.57484955,186.3,186.1,5.3733]
[1722270446218,5.372,186.15,186.1,5.3733]
[1722270446395,41.5761,186.21,186.12,5.3728]
[1722270446581,5.3716,186.17,186.11,30.064]
[1722270446786,5.3714,186.17,186.11,30.064]
[1722270447100,1.34301872,186.2,186.11,16.6313]
[1722270447283,5.3724,186.14,186.08,5.3737]
[1722270447621,5.3723,186.14,186.09,1.07459506]
[1722270447813,13.4272,186.19,186.09,6.44829506]
[1722270448112,5.372,186.15,186.1,1.0745395]
[1722270448312,5.3724,186.14,186.1,1.0745395]
[1722270448688,5.3726,186.13,186.09,1.07452649]
[1722270448908,5.3717,186.17,186.1,5.3734]
[1722270449122,13.4272,186.19,186.11,1.07445082]
[1722270449420,5.3726,186.13,186.09,45.0]
[1722270449621,5.3726,186.13,186.08,45.0]
[1722270449916,13.4294,186.16,186.07,6.4537]
[1722270450596,13.4271,186.19,186.07,6.4537]
[1722270450808,5.3717,186.16,186.1,5.3734]
[1722270451433,5.3713,186.18,186.12,5.3726]
[1722270451604,28.15,186.21,186.13,5.3725]
[1722270452035,5.3708,186.19,186.14,1.07429471]
[1722270452233,5.3711,186.19,186.13,5.3725]
[1722270452613,5.3711,186.18,186.13,5.3725]
[1722270452816,5.3714,186.17,186.12,5.3728]
[1722270453111,5.3714,186.17,186.11,18.8053]
[1722270453435,5.3737,186.09,186.07,6.4537]
[1722270453636,5.3731,186.12,186.07,6.4537]
[1722270453949,60.55176041,186.21,186.08,1.07464188]
[1722270453950,5.3726,186.13,186.08,1.07464188]
[1722270454112,1.34315601,186.16,186.07,6.4537]
[1722270454314,5.374,186.08,186.07,6.4537]
[1722270454735,48.20265601,186.16,185.99,6.4062]
[1722270454736,28.15,186.1,185.99,6.4062]
[1722270454916,28.15,186.1,186.0,13.4408]
[1722270454917,5.3748,186.06,186.0,13.4408]
[1722270455117,1.34383757,186.09,185.99,6.4062]
[1722270455319,13.4362,186.07,185.99,6.4062]
[1722270455519,14.78021867,186.07,185.99,6.4062]
[1722270455726,5.376,186.02,185.99,6.4062]
[1722270456050,5.3746,186.06,185.99,19.8476]
[1722270456226,28.15,186.12,186.0,1.07516575]
[1722270456415,28.15,186.12,185.99,6.4062]
[1722270456615,20.0,186.11,185.99,6.4062]
[1722270456815,20.0,186.11,186.0,58.4408]
[1722270457036,5.375,186.05,186.0,58.4408]
[1722270458143,5.374,186.08,186.02,5.3757]
[1722270458434,28.15,186.12,186.0,58.4408]
[1722270458614,5.3747,186.06,186.0,58.4408]
[1722270458817,1.34373594,186.05,185.99,6.4062]
[1722270459030,21.34373594,186.1,185.99,6.4062]
[1722270459237,28.15,186.07,185.99,6.4062]
[1722270459424,5.3757,186.02,185.99,6.4062]
[1722270459635,1.34406885,186.06,185.99,6.4062]
[1722270459636,5.3761,186.01,185.99,6.4062]
[1722270460234,5.3763,186.0,185.99,6.4062]
[1722270460538,5.3757,186.03,185.99,6.4062]
[1722270461040,5.3752,186.04,185.99,6.4062]
[1722270461247,5.3755,186.03,185.99,6.4062]
[1722270461434,5.3759,186.02,185.99,6.4062]
[1722270461617,5.3755,186.03,185.99,6.4062]
[1722270462123,5.3752,186.04,185.99,6.4062]
[1722270462325,13.4343,186.09,185.99,11.7825]
[1722270462529,5.3751,186.05,186.0,45.17]
[1722270462947,5.3746,186.07,186.0,45.17]
[1722270463243,5.3746,186.06,186.01,5.376]
[1722270463425,1.34384146,186.09,185.99,6.4062]
[1722270463624,5.3752,186.04,185.99,6.4062]
[1722270463839,14.77805868,186.1,185.99,6.4062]
[1722270464148,5.3759,186.02,185.99,6.4062]
[1722270464521,5.3763,186.0,185.99,6.4062]
[1722270466833,13.4355,186.08,185.99,6.4062]
[1722270467143,35.85580215,186.11,185.99,19.8477]
[1722270467348,5.3735,186.1,186.0,0.17]
[1722270467526,5.3735,186.1,186.04,5.375]
[1722270467724,5.3735,186.1,186.05,5.3748]
[1722270467948,5.3738,186.09,186.03,5.3752]
[1722270468128,5.3738,186.09,186.04,5.5451]
[1722270468326,1.34355462,186.14,186.05,16.4281]
[1722270468526,291.6005858,186.15,186.05,16.4281]
[1722270468842,5.3737,186.09,186.05,16.4281]
[1722270469035,5.3741,186.08,186.05,16.4281]
[1722270469236,5.3734,186.1,186.05,16.4281]
[1722270469755,1.34370845,186.12,186.05,16.4281]
[1722270470430,5.3745,186.07,186.05,16.4281]
[1722270470625,13.433,186.11,186.01,13.44]
[1722270470826,41.583,186.11,186.01,13.44]
[1722270471026,28.15,186.11,186.01,13.44]
[1722270471242,5.3743,186.08,186.03,5.3754]
[1722270471550,28.15,186.11,186.04,5.375]
[1722270471734,5.3737,186.1,186.04,5.375]
[1722270472134,5.3738,186.09,186.04,5.375]
[1722270472356,5.3738,186.09,186.03,5.3754]
[1722270472524,5.3728,186.13,186.07,5.3742]
[1722270472731,13.4277,186.19,186.1,5.3731]
[1722270472930,13.4277,186.19,186.04,20.0]
[1722270473126,5.3722,186.15,186.09,5.3737]
[1722270473439,5.3717,186.16,186.08,0.17]
[1722270473638,1.34317139,186.18,186.05,45.34]
[1722270473837,5.3725,186.13,186.07,5.3742]
[1722270474028,1.34329586,186.17,186.07,13.4357]
[1722270474029,5.3729,186.12,186.07,13.4357]
[1722270474459,5.3727,186.13,186.07,18.8097]
[1722270474634,5.3727,186.13,186.08,5.374]
[1722270474830,5.3727,186.13,186.07,13.4357]
[1722270475546,13.4295,186.16,186.05,0.17]
[1722270475731,5.54956854,186.21,186.16,5.3717]
[1722270475932,28.15,186.25,186.15,13.4294]
[1722270476134,1.34287357,186.28,186.15,13.4294]
[1722270476443,13.4243,186.23,186.11,13.4324]
[1722270476651,1.34295445,186.22,186.12,0.17]
[1722270476840,5.3708,186.19,186.12,0.17]
[1722270477044,28.15,186.24,186.12,0.17]
[1722270477045,1.34295185,186.18,186.12,0.17]
[1722270477353,1.34295185,186.18,186.07,6.0713]
[1722270477653,5.3708,186.19,186.13,5.3725]
[1722270477862,5.3712,186.18,186.12,13.4319]
[1722270478230,6.71448603,186.18,186.12,18.8046]
[1722270478426,5.3714,186.18,186.12,18.8046]
[1722270478629,5.3714,186.17,186.12,13.4319]
[1722270479245,5.371,186.19,186.13,5.3725]
[1722270479854,5.3706,186.2,186.14,5.3722]
[1722270480056,5.3703,186.21,186.12,13.6019]
[1722270480254,5.37,186.22,186.15,13.4298]
[1722270480454,5.3714,186.18,186.12,5.3728]
[1722270480634,1.3431184,186.23,186.14,5.372]
[1722270480835,5.3705,186.21,186.14,5.3722]
[1722270481040,1.34299334,186.21,186.13,5.3723]
[1722270481245,28.15,186.24,186.13,5.3723]
[1722270481438,41.574,186.24,186.11,13.4324]
[1722270481643,5.3705,186.21,186.11,13.4324]
[1722270481845,5.3706,186.2,186.11,13.4324]
[1722270482057,29.49294976,186.24,186.14,13.4304]
[1722270482257,15.57110914,186.28,186.14,13.4304]
[1722270482568,1.3429214,186.27,186.17,13.4285]
[1722270482738,5.3697,186.23,186.17,13.4285]
[1722270482937,1.3427053,186.25,186.18,5.3709]
[1722270483140,6.7119053,186.25,186.19,11.3852]
[1722270483334,5.3694,186.24,186.19,11.3852]
[1722270483646,5.3688,186.27,186.21,5.3702]
[1722270483866,5.3688,186.26,186.2,5.3705]
[1722270484159,286.05,186.33,186.19,6.0145]
[1722270484457,5.3682,186.29,186.23,18.7936]
[1722270484662,1.3422214,186.32,186.24,5.3693]
[1722270484663,5.3678,186.3,186.24,5.3693]
[1722270485173,5.3678,186.3,186.25,5.369]
[1722270485340,28.15,186.33,186.26,5.3686]
[1722270485341,5.367,186.33,186.26,5.3686]
[1722270485549,5.367,186.33,186.27,5.3685]
[1722270485755,5.3671,186.32,186.27,5.3685]
[1722270485967,5.3685,186.28,186.23,5.3696]
[1722270486153,13.4173,186.33,186.23,5.3695]
[1722270486154,5.3679,186.3,186.23,5.3695]
[1722270486468,5.3673,186.32,186.25,5.3691]
[1722270486760,5.3673,186.32,186.22,13.4245]
[1722270486761,5.3677,186.3,186.22,13.4245]
[1722270486944,5.3674,186.31,186.25,5.369]
[1722270487146,5.3677,186.3,186.24,5.3694]
[1722270487963,5.3674,186.31,186.25,5.3691]
[1722270488342,5.3674,186.31,186.26,5.3688]
[1722270488570,5.3659,186.36,186.23,21.07363331]
[1722270488744,5.3671,186.32,186.27,5.3682]
[1722270489066,13.4137,186.38,186.27,5.3682]
[1722270489276,5.3668,186.33,186.27,5.3682]
[1722270489479,5.3668,186.33,186.26,5.3685]
[1722270489645,5.3677,186.3,186.24,18.792]
[1722270489973,5.3672,186.32,186.26,5.3685]
[1722270490480,5.3668,186.33,186.27,13.4212]
[1722270490638,1.34205499,186.32,186.23,13.4235]
[1722270490845,5.3677,186.3,186.24,5.3693]
[1722270491144,5.3677,186.3,186.25,5.3691]
[1722270491358,1.34218376,186.36,186.26,13.422]
[1722270491685,5.3678,186.3,186.24,5.3694]
[1722270491856,1.34218366,186.29,186.25,5.369]
[1722270492048,5.3673,186.32,186.25,5.369]
[1722270492248,61.5648,186.37,186.21,20.0]
[1722270492249,5.3666,186.34,186.28,5.3682]
[1722270492444,1.34213406,186.33,186.27,5.3685]
[1722270492949,1.34213406,186.33,186.21,20.0]
[1722270492950,5.3671,186.32,186.26,5.3687]
[1722270493146,48.15,186.37,186.23,20.0]
[1722270493451,5.3668,186.33,186.27,5.3684]
[1722270493654,61.5641,186.37,186.27,13.4206]
[1722270494072,5.3668,186.33,186.27,18.7889]
[1722270494772,5.3668,186.33,186.28,5.3682]
[1722270495073,5.3663,186.35,186.27,13.4206]
[1722270495244,5.3663,186.35,186.29,5.3678]
[1722270495446,5.3663,186.35,186.3,22.1942]
[1722270496379,5.3665,186.34,186.3,22.1942]
[1722270496775,5.3662,186.35,186.3,22.1942]
[1722270496977,5.3665,186.34,186.3,22.1942]
[1722270497177,13.4135,186.38,186.3,22.1942]
[1722270497178,5.367,186.33,186.3,22.1942]
[1722270497769,24.95,186.37,186.3,22.1942]
[1722270497770,5.3673,186.31,186.3,22.1942]
[1722270498077,5.3665,186.34,186.3,22.1942]
[1722270498557,5.3662,186.35,186.3,22.1942]
[1722270498984,38.3626,186.4,186.3,27.5617]
[1722270499162,5.3659,186.36,186.31,5.3673]
[1722270499487,5.3668,186.34,186.3,22.1942]
[1722270499673,40.52957665,186.4,186.3,22.1942]
[1722270499878,5.3662,186.35,186.3,22.1942]
[1722270500187,5.3665,186.34,186.3,22.1942]
[1722270500962,5.3662,186.35,186.3,27.5618]
[1722270501162,5.3662,186.35,186.3,22.1942]
[1722270501383,5.3666,186.34,186.3,22.1942]
[1722270501587,5.3669,186.33,186.3,22.1942]
[1722270502197,24.95,186.37,186.3,27.5618]
[1722270502393,5.3659,186.37,186.31,0.17]
[1722270502689,5.3659,186.37,186.31,5.5371]
[1722270503264,40.52957665,186.4,186.31,0.17]
[1722270503478,5.3665,186.34,186.31,0.17]
[1722270504669,27.11697665,186.4,186.31,21.24330819]
[1722270504995,5.3644,186.42,186.35,5.3661]
[1722270505195,5.3644,186.42,186.36,0.17]
[1722270505391,5.3644,186.42,186.36,5.5358]
[1722270505695,30.314,186.43,186.36,0.17]
[1722270505873,30.314,186.43,186.37,5.3656]
[1722270506072,5.364,186.43,186.38,0.17]
[1722270506875,5.3643,186.42,186.38,0.17]
[1722270507374,0.7611387,186.44,186.38,0.17]
[1722270507678,5.3646,186.41,186.38,0.17]
[1722270507982,0.7611387,186.44,186.35,0.17]
[1722270507983,2.10227675,186.44,186.37,0.17]
[1722270508183,5.3655,186.38,186.33,5.3667]
[1722270508382,5.3645,186.41,186.36,5.3659]
[1722270508696,30.3139,186.43,186.37,5.5356]
[1722270509001,5.3639,186.43,186.38,5.5353]
[1722270509198,0.7611387,186.44,186.39,5.3649]
[1722270509503,0.7611387,186.44,186.4,0.17]
[1722270509688,6.1250387,186.44,186.4,0.17]
[1722270509871,0.7611387,186.44,186.4,0.17]
[1722270510076,1.34102922,186.43,186.37,0.17]
[1722270510403,0.7611387,186.44,186.37,0.17]
[1722270510708,5.3645,186.41,186.37,0.17]
[1722270510878,5.3645,186.41,186.36,0.17]
[1722270511067,5.3642,186.42,186.36,5.5358]
[1722270511482,6.1248387,186.44,186.38,5.3652]
[1722270511688,0.7611387,186.44,186.4,21.653]
[1722270512800,0.7611387,186.44,186.41,5.3643]
[1722270512973,5.3645,186.41,186.4,15.2313]
[1722270513178,0.7611387,186.44,186.35,5.3662]
[1722270513393,5.3644,186.42,186.36,5.5359]
[1722270513593,0.7611387,186.44,186.36,0.17]
[1722270513782,0.7611387,186.44,186.39,5.365]
[1722270514096,0.7611387,186.44,186.4,5.5348]
[1722270514313,0.7611387,186.44,186.4,0.17]
[1722270514488,0.7611387,186.44,186.35,0.17]
[1722270514690,0.7611387,186.44,186.35,0.34]
[1722270514884,0.7611387,186.44,186.35,45.34]
[1722270515091,0.7611387,186.44,186.36,20.0]
[1722270515400,0.7611387,186.44,186.4,5.3646]
[1722270515582,0.7611387,186.44,186.41,11.9677]
[1722270515785,0.7611387,186.44,186.41,6.6032]
[1722270516315,5.3642,186.42,186.41,6.6032]
[1722270516597,6.1248387,186.44,186.41,6.6032]
[1722270517105,5.364,186.43,186.41,6.6032]
[1722270517903,0.7611387,186.44,186.41,6.6032]
[1722270518602,0.7611387,186.44,186.42,20.9531]
[1722270519781,0.7611387,186.44,186.43,5.3639]
[1722270519982,0.7611387,186.44,186.43,5.5339]
[1722270520408,0.7611387,186.44,186.43,0.17]
[1722270520582,0.7611387,186.44,186.42,15.419]
[1722270521279,5.3617,186.51,186.46,5.3628]
[1722270521791,5.3613,186.53,186.47,5.3627]
[1722270521991,5.3613,186.53,186.45,0.17]
[1722270522299,5.3608,186.54,186.48,5.3622]
[1722270522607,5.3611,186.53,186.48,5.3622]
[1722270522903,24.95,186.58,186.47,0.17]
[1722270522904,5.3599,186.57,186.49,0.34]
[1722270523207,5.3605,186.55,186.5,5.3618]
[1722270523504,5.3605,186.55,186.51,0.17]
[1722270523886,5.3602,186.56,186.51,5.5316]
[1722270524076,5.3602,186.56,186.41,6.6032]
[1722270524077,24.95,186.54,186.41,6.6032]
[1722270524281,24.95,186.51,186.41,6.6032]
[1722270524480,5.3637,186.44,186.41,6.6032]
[1722270525610,5.3634,186.45,186.41,6.6032]
[1722270525795,5.3637,186.44,186.41,6.6032]
[1722270526108,5.3628,186.47,186.42,20.783]
[1722270526313,5.3627,186.47,186.42,20.7832]
[1722270526802,24.95,186.51,186.42,15.419]
[1722270527004,26.8026,186.55,186.42,15.419]
[1722270527005,24.95,186.48,186.42,15.419]
[1722270527583,5.3631,186.46,186.42,15.419]
[1722270528586,5.3634,186.45,186.42,15.419]
[1722270528904,39.69708871,186.48,186.42,15.419]
[1722270529111,5.3639,186.43,186.42,15.419]
[1722270529811,30.3135,186.45,186.42,15.419]
[1722270529989,24.95,186.45,186.42,15.419]
[1722270530393,5.3637,186.44,186.42,15.419]
[1722270530594,5.3639,186.43,186.42,15.419]
[1722270532004,26.29111235,186.45,186.36,6.015]
[1722270532207,24.95,186.38,186.32,15.1378]
[1722270532603,24.95,186.35,186.32,15.1378]
[1722270532808,30.3165,186.35,186.32,15.1378]
[1722270533415,24.95,186.38,186.34,5.3665]
[1722270533590,24.95,186.42,186.35,1.07281532]
[1722270533789,5.3646,186.41,186.35,5.3662]
[1722270534113,24.95,186.42,186.34,5.3664]
[1722270534807,5.3651,186.39,186.33,5.5368]
[1722270535013,5.3654,186.38,186.33,0.17]
[1722270535197,24.95,186.39,186.33,0.17]
[1722270535893,5.3657,186.37,186.33,0.17]
[1722270536304,24.95,186.39,186.33,5.5367]
[1722270536305,30.3153,186.39,186.33,5.5367]
[1722270536510,24.95,186.39,186.33,0.17]
[1722270536902,24.95,186.39,186.34,5.3664]
[1722270537106,5.3648,186.4,186.34,5.3664]
[1722270537310,5.3651,186.39,186.34,5.3664]
[1722270537819,13.4091,186.44,186.33,0.17]
[1722270537992,24.95,186.43,186.33,1.24275056]
[1722270538191,5.3652,186.39,186.34,5.3665]
[1722270538496,5.3652,186.39,186.33,1.24275056]
[1722270538497,5.3654,186.38,186.33,0.17]
[1722270538701,5.3654,186.38,186.33,5.5367]
[1722270538898,24.95,186.43,186.34,1.24262353]
[1722270539197,5.3645,186.41,186.36,5.3659]
[1722270539390,5.3645,186.41,186.37,0.17]
[1722270539817,24.95,186.43,186.37,5.5355]
[1722270539818,5.3642,186.42,186.37,5.5355]
[1722270539988,13.4062,186.48,186.38,5.3653]
[1722270540197,44.75373193,186.59,186.39,1.24197672]
[1722270540198,5.363,186.46,186.39,1.24197672]
[1722270540424,5.363,186.46,186.4,0.17]
[1722270540714,24.95,186.43,186.4,0.17]
[1722270540899,5.3645,186.41,186.35,5.3659]
[1722270541099,5.3645,186.41,186.36,0.17]
[1722270541286,5.3649,186.4,186.36,0.17]
[1722270541606,24.95,186.4,186.35,0.17]
[1722270541911,24.95,186.4,186.33,5.3667]
[1722270542110,24.95,186.43,186.34,1.07262892]
[1722270542503,24.95,186.43,186.38,5.3652]
[1722270542717,24.95,186.43,186.39,6.4370743]
[1722270542915,5.364,186.43,186.38,0.17]
[1722270543117,24.95,186.46,186.38,0.17]
[1722270543298,5.3651,186.39,186.32,15.1378]
[1722270543506,5.3648,186.4,186.34,5.3662]
[1722270543716,5.3648,186.4,186.35,0.17]
[1722270543894,5.3651,186.39,186.35,0.17]
[1722270544104,5.3648,186.4,186.35,0.17]
[1722270544411,5.3632,186.46,186.4,5.3645]
[1722270544615,24.95,186.46,186.4,5.3645]
[1722270545199,24.95,186.43,186.32,15.1378]
[1722270545409,5.3659,186.36,186.32,15.1378]
[1722270545608,24.95,186.37,186.32,15.1378]
[1722270545911,24.95,186.4,186.32,15.1378]
[1722270546118,30.315,186.4,186.32,15.1378]
[1722270546497,24.95,186.4,186.35,5.3662]
[1722270546693,5.3647,186.41,186.36,5.3658]
[1722270546902,24.95,186.43,186.35,0.17]
[1722270547110,5.365,186.4,186.35,0.17]
[1722270547319,5.3651,186.39,186.35,0.17]
[1722270547508,13.4091,186.44,186.35,6.60863468]
[1722270547509,5.3648,186.4,186.35,6.60863468]